bitfinex-derivatives/quotes_ETHF0:USTF0_20250730
["timestamp","ask_amount","ask_price","bid_price","bid_amount"]
[1753880049929,5.8786,3776.0,3775.9,5.3191]
[1753880050628,1.5306,3776.0,3775.9,6.1821]
[1753880050827,4.2462,3776.7,3776.6,1.8858]
[1753880051028,6.30737,3776.7,3776.6,5.3191]
[1753880051435,8.70537,3776.7,3776.6,5.3191]
[1753880051732,9.61597,3776.7,3776.6,5.3191]
[1753880051926,6.40817,3776.7,3776.6,5.3191]
[1753880052126,6.40817,3776.7,3776.6,6.1821]
[1753880052127,2.569,3776.7,3776.6,6.1821]
[1753880052528,5.8786,3776.7,3776.6,3.7808]
[1753880052729,5.8786,3776.7,3776.6,0.9317]
[1753880054126,5.8786,3776.7,3776.6,3.9189]
[1753880054332,5.8786,3776.7,3776.6,5.3191]
[1753880054834,4.1284,3776.7,3776.6,5.3191]
[1753880055336,4.968,3776.7,3776.6,5.3191]
[1753880055732,0.52953,3777.0,3776.8,0.52955]
[1753880055937,5.7768,3777.2,3777.1,2.99952]
[1753880056134,5.7768,3777.2,3777.1,6.71162]
[1753880056337,5.7768,3777.2,3777.1,6.1821]
[1753880056726,5.7768,3777.2,3777.1,5.3191]
[1753880056938,5.7768,3777.2,3777.1,6.1821]
[1753880057140,7.3362,3777.2,3777.1,6.1821]
[1753880057935,4.1284,3777.2,3777.1,6.1821]
[1753880058333,0.52952,3777.1,3776.9,0.52954]
[1753880058535,5.78712,3777.1,3777.0,4.7349]
[1753880058740,6.40812,3777.1,3777.0,5.3191]
[1753880060138,6.40812,3777.1,3776.8,0.52956]
[1753880060139,4.22776,3776.9,3776.8,2.3319]
[1753880060338,6.40817,3776.7,3776.6,3.2078]
[1753880060837,3.0996,3776.5,3776.4,3.8643]
[1753880061029,6.4082,3776.5,3776.4,5.2645]
[1753880061233,6.4082,3776.5,3776.4,5.8487]
[1753880061830,0.8396,3776.8,3776.4,6.7117]
[1753880062033,4.1284,3777.0,3776.9,5.3191]
[1753880062335,1.5306,3777.0,3776.9,2.99953]
[1753880062640,2.569,3777.0,3776.9,2.47]
[1753880062837,5.8786,3777.0,3776.9,5.3191]
[1753880063140,5.8786,3776.5,3776.4,2.3319]
[1753880063338,1.15069,3775.9,3775.8,1.71188236]
[1753880063636,5.8786,3775.9,3775.8,2.52788236]
[1753880063837,5.8786,3775.9,3775.8,5.51508236]
[1753880064037,0.52964,3776.2,3775.9,0.52969]
[1753880064243,3.4796,3776.2,3776.1,5.3191]
[1753880064740,5.039,3776.2,3776.1,5.3191]
[1753880065045,5.8786,3776.2,3776.1,5.3191]
[1753880065239,5.8786,3776.2,3776.1,3.286]
[1753880065946,40.8,3776.3,3776.2,2.99964]
[1753880066141,2.569,3776.6,3776.5,2.47]
[1753880066340,4.1284,3776.6,3776.5,2.47]
[1753880066543,46.6786,3776.6,3776.5,5.3191]
[1753880067239,5.8786,3776.6,3776.5,5.3191]
[1753880067843,6.24414,3776.2,3776.1,0.8917]
[1753880068047,5.65717,3776.0,3775.9,0.8917]
[1753880068251,6.24417,3776.0,3775.9,0.8917]
[1753880068546,6.24417,3776.0,3775.8,2.01707236]
[1753880068547,2.5877,3775.9,3775.8,1.48738236]
[1753880068751,5.7145,3775.9,3775.8,3.34478236]
[1753880068953,5.7145,3775.9,3775.8,5.40608236]
[1753880068954,1.4633,3775.9,3775.8,5.40608236]
[1753880069249,2.4576,3775.9,3775.8,5.40608236]
[1753880069750,0.52962,3776.4,3775.8,2.64238236]
[1753880069943,0.8427,3776.8,3776.4,2.364]
[1753880070152,3.53834,3777.0,3776.9,5.73965]
[1753880070455,4.53264,3777.0,3776.9,5.2101]
[1753880070649,6.24404,3777.0,3776.9,5.2101]
[1753880071350,1.5813,3776.5,3776.4,7.47522]
[1753880071551,5.7145,3776.5,3776.4,3.7378]
[1753880071745,3.2078,3776.9,3776.2,5.2101]
[1753880071746,3.3263,3776.3,3776.2,5.2101]
[1753880071951,5.7145,3776.3,3776.2,5.2101]
[1753880072153,0.9943,3775.9,3775.8,7.08228236]
[1753880072359,4.8458,3775.9,3775.8,9.14358236]
[1753880072550,5.7145,3775.9,3775.8,8.61388236]
[1753880072750,5.7145,3775.9,3775.8,6.55258236]
[1753880073150,5.7145,3775.9,3775.8,8.61388236]
[1753880073355,1.4633,3775.9,3775.8,8.61388236]
[1753880073749,4.0031,3775.9,3775.8,7.14158236]
[1753880073957,5.7145,3775.9,3775.8,7.14158236]
[1753880074257,4.0031,3775.9,3775.8,8.61388236]
[1753880074650,4.8458,3775.9,3775.8,8.61388236]
[1753880075052,41.6763,3776.2,3776.1,5.2101]
[1753880075256,0.8427,3776.6,3776.1,5.2101]
[1753880075257,2.424,3776.6,3776.5,2.976]
[1753880075556,3.9695,3776.6,3776.5,5.2101]
[1753880075756,44.7695,3776.6,3776.5,5.2101]
[1753880075960,45.6458,3776.6,3776.5,5.2101]
[1753880076255,45.6458,3776.6,3776.2,4.44833]
[1753880076256,2.4576,3776.3,3776.2,4.44833]
[1753880076456,4.8458,3776.3,3776.2,5.73973]
[1753880076755,4.0031,3776.3,3776.2,5.73973]
[1753880078058,41.6763,3776.6,3776.5,5.7397]
[1753880078255,41.6763,3776.6,3776.5,5.2101]
[1753880078452,2.4576,3776.6,3776.5,5.2101]
[1753880078656,4.0031,3776.6,3776.5,5.2101]
[1753880078857,0.8763,3776.6,3776.5,6.0831]
[1753880079359,20.68304,3777.0,3776.9,5.2101]
[1753880079360,1.99284,3777.0,3776.9,5.2101]
[1753880079563,4.53264,3777.0,3776.9,5.2101]
[1753880079756,5.7145,3777.0,3776.9,5.73965]
[1753880079955,5.7145,3777.0,3776.9,5.2101]
[1753880080160,4.6711,3777.1,3777.0,2.01023]
[1753880080361,4.6711,3777.1,3777.0,5.73963]
[1753880080956,5.6654,3777.1,3777.0,5.73963]
[1753880082162,7.2109,3777.1,3777.0,5.73963]
[1753880083864,4.0031,3777.1,3777.0,5.73963]
[1753880084160,1.4633,3777.1,3777.0,6.61263]
[1753880084365,4.0031,3777.5,3777.4,2.97588]
[1753880084565,4.0031,3777.5,3777.4,5.73958]
[1753880084955,4.8458,3777.5,3777.4,5.73958]
[1753880085160,4.8458,3777.5,3777.4,5.2101]
[1753880085354,5.7145,3777.5,3777.4,5.2101]
[1753880087655,1.5813,3776.9,3776.8,7.1265]
[1753880087861,5.7145,3776.9,3776.8,7.65606]
[1753880088165,5.7145,3776.9,3776.8,8.94746]
[1753880088873,4.169,3776.9,3776.8,8.94746]
[1753880089062,5.7145,3776.9,3776.8,8.94746]
[1753880090567,1.4633,3776.9,3776.8,9.82046]
[1753880090764,4.8718,3776.9,3776.8,3.2078]
[1753880090966,6.24409,3776.6,3776.5,0.8917]
[1753880091262,0.52962,3776.4,3776.2,4.4992]
[1753880091457,2.97962,3776.4,3776.3,0.8917]
[1753880092069,6.24412,3776.4,3776.3,0.8917]
[1753880092859,5.7145,3776.4,3776.3,0.8917]
[1753880093261,3.85593,3776.3,3776.2,3.2078]
[1753880093466,6.24413,3776.3,3776.2,3.2078]
[1753880095470,6.24277,3776.0,3775.9,5.2101]
[1753880095876,6.24277,3776.0,3775.8,3.93347236]
[1753880095877,3.85597,3776.0,3775.8,3.93347236]
[1753880096066,5.7131,3775.9,3775.8,7.85217236]
[1753880096266,5.7131,3775.9,3775.8,7.32248236]
[1753880096467,5.7131,3775.9,3775.8,8.61388236]
[1753880096966,4.8718,3775.9,3775.8,8.61388236]
[1753880097167,2.4576,3775.9,3775.8,9.48458236]
[1753880097369,3.9349,3775.9,3775.8,5.26118236]
[1753880097569,5.6824,3775.9,3775.8,8.62578236]
[1753880098866,5.6824,3775.9,3775.8,4.29548236]
[1753880099262,5.6824,3775.9,3775.8,1.08768236]
[1753880099970,6.21392,3776.4,3776.3,0.9526]
[1753880100168,6.21392,3776.4,3776.3,5.1934]
[1753880100573,47.01392,3776.4,3776.3,5.1934]
[1753880101067,2.4488,3776.1,3776.0,3.8595]
[1753880101376,5.6843,3776.1,3776.0,5.1934]
[1753880101868,3.9368,3776.1,3776.0,5.1934]
[1753880102069,2.4595,3776.1,3776.0,6.0641]
[1753880102269,1.5129,3776.1,3776.0,6.0641]
[1753880103070,3.9368,3776.1,3776.0,6.0641]
[1753880103473,5.6843,3776.1,3776.0,0.8762]
[1753880103672,5.6843,3776.1,3775.8,0.19598236]
[1753880103878,5.6843,3775.9,3775.8,0.19598236]
[1753880104974,2.4239,3775.9,3775.8,0.19598236]
[1753880105181,4.7653,3776.0,3775.9,4.38919]
[1753880105379,45.5653,3776.0,3775.9,4.38919]
[1753880105675,46.4843,3776.0,3775.9,4.38919]
[1753880105878,2.4595,3776.0,3775.9,5.72309]
[1753880106376,5.6843,3776.0,3775.9,5.72309]
[1753880106679,3.9368,3776.0,3775.9,6.59379]
[1753880106978,5.6843,3776.0,3775.9,4.18279]
[1753880107174,6.21399,3775.9,3775.8,0.19598236]
[1753880107681,5.6843,3775.9,3775.8,0.19598236]
[1753880107886,5.6843,3775.9,3775.8,1.07218236]
[1753880108984,5.6843,3775.9,3775.8,0.19598236]
[1753880109579,5.6843,3775.9,3775.8,1.07218236]
[1753880110382,5.6843,3775.9,3775.8,2.40608236]
[1753880111787,5.6843,3775.9,3775.8,5.38938236]
[1753880112881,5.6843,3776.3,3776.2,2.4165]
[1753880113079,5.6843,3776.3,3776.2,5.72305]
[1753880113281,46.4843,3776.3,3776.2,5.72305]
[1753880114079,5.6673,3776.5,3776.4,6.0641]
[1753880114273,8.8921,3776.5,3776.2,0.52963]
[1753880114473,3.3678,3776.3,3776.2,1.40583]
[1753880114679,5.6843,3776.3,3776.2,4.28003]
[1753880114877,5.6843,3776.3,3776.2,5.72303]
[1753880115378,2.4595,3776.3,3776.2,6.59373]
[1753880116581,8.8921,3776.5,3776.4,2.73972]
[1753880116785,8.8921,3776.5,3776.4,1.40582]
[1753880117284,8.8921,3776.5,3776.4,0.8762]
[1753880117585,5.6843,3776.2,3776.1,0.52965]
[1753880118088,5.6843,3776.2,3776.1,1.40585]
[1753880118283,5.6843,3776.2,3776.1,2.73975]
[1753880118587,5.6843,3776.2,3776.1,3.69235]
[1753880118787,5.6843,3776.2,3776.1,5.72305]
[1753880119082,4.1268,3776.5,3776.4,0.52962]
[1753880119281,4.1268,3776.5,3776.4,6.59372]
[1753880119974,41.719,3776.8,3776.7,6.59368]
[1753880120387,1.5129,3776.8,3776.7,6.59368]
[1753880120582,2.4595,3776.8,3776.7,6.59368]
[1753880120786,3.9368,3776.8,3776.7,5.72298]
[1753880121288,2.4595,3776.8,3776.7,6.59358]
[1753880121689,4.8451,3777.3,3777.2,4.27991]
[1753880121886,4.7759,3777.3,3777.2,5.1934]
[1753880122082,5.6842,3777.3,3777.2,5.1934]
[1753880122385,46.4842,3777.3,3777.2,5.1934]
[1753880123476,46.4842,3777.3,3777.2,0.8762]
[1753880123677,2.97833,3777.0,3776.9,2.94604]
[1753880123888,2.97833,3777.0,3776.9,3.8595]
[1753880124089,6.21373,3777.0,3776.9,3.8595]
[1753880124591,6.21373,3777.0,3776.9,5.1934]
[1753880124985,5.6842,3777.0,3776.9,5.1934]
[1753880125792,4.8451,3777.0,3776.9,5.1934]
[1753880126285,3.9368,3777.0,3776.9,5.1934]
[1753880126485,2.4595,3777.0,3776.9,6.064]
[1753880126691,43.6459,3777.3,3777.2,2.4165]
[1753880126885,43.7258,3777.3,3777.2,5.1934]
[1753880127287,43.1616,3777.3,3777.2,5.1934]
[1753880127488,1.4773,3777.3,3777.2,6.0655]
[1753880127688,1.4528,3777.6,3777.5,6.73025]
[1753880128588,2.4676,3777.6,3777.5,6.2008]
[1753880128789,3.8736,3777.6,3777.5,5.3287]
[1753880129183,4.715,3777.6,3777.5,5.3287]
[1753880129792,2.4676,3777.6,3777.5,5.3287]
[1753880130092,2.4676,3777.6,3777.5,6.2008]
[1753880130789,2.4676,3777.6,3777.5,5.3287]
[1753880130987,4.715,3777.6,3777.5,5.3287]
[1753880131491,5.5787,3777.6,3777.5,5.3287]
[1753880131699,5.5787,3777.6,3777.5,3.219]
[1753880132085,3.8736,3777.6,3777.5,5.3287]
[1753880132293,5.5787,3777.6,3777.5,5.3287]
[1753880133187,63.88032,3778.0,3777.8,2.445]
[1753880133188,1.4528,3777.9,3777.8,2.445]
[1753880133390,1.4528,3777.9,3777.8,6.73022]
[1753880134294,3.8736,3777.9,3777.8,5.3287]
[1753880134491,5.5787,3777.7,3777.6,0.52943]
[1753880134682,5.5787,3777.7,3777.6,4.29493]
[1753880134891,1.8785,3777.5,3777.4,0.52947]
[1753880135084,5.5787,3777.5,3777.4,1.41127]
[1753880135384,2.4676,3777.5,3777.4,6.73027]
[1753880135689,1.5833,3777.8,3777.7,6.73023]
[1753880135890,0.5685,3777.8,3777.7,6.73023]
[1753880136195,1.4528,3777.8,3777.7,6.73023]
[1753880136783,40.8,3778.0,3777.9,1.10641]
[1753880136989,43.0903,3778.0,3777.9,5.85811]
[1753880137190,43.0903,3778.0,3777.9,6.73021]
[1753880137493,43.9317,3778.0,3777.9,5.85811]
[1753880140490,43.9317,3778.0,3777.9,0.52941]
[1753880140689,43.9317,3778.0,3777.9,4.32541]
[1753880140891,43.9317,3778.0,3777.9,5.85811]
[1753880141586,43.9317,3778.0,3777.9,3.74841]
[1753880141796,43.9317,3778.0,3777.9,1.41121]
[1753880142593,43.9317,3778.0,3777.9,3.74841]
[1753880142791,43.9317,3778.0,3777.9,5.28111]
[1753880142990,43.9317,3778.0,3777.9,5.85811]
[1753880144195,3.8736,3778.0,3777.9,5.85811]
[1753880144891,40.8,3778.2,3778.1,2.97438]
[1753880145089,43.0903,3778.2,3778.1,6.73018]
[1753880145295,43.9317,3778.2,3778.1,6.73018]
[1753880145491,43.9317,3778.2,3778.1,5.85808]
[1753880147599,3.2078,3778.4,3778.3,6.73015]
[1753880147894,4.6606,3778.4,3778.3,6.73015]
[1753880148098,5.6754,3778.4,3778.3,6.73015]
[1753880148302,7.9451,3778.4,3778.3,2.5189]
[1753880148606,6.4962,3778.4,3778.3,5.3287]
[1753880149100,8.7865,3778.4,3778.3,5.3287]
[1753880149397,5.5787,3778.4,3778.3,5.3287]
[1753880150403,3.8736,3778.4,3778.3,5.3287]
[1753880150603,3.8736,3778.4,3778.3,6.2008]
[1753880150900,1.4528,3778.4,3778.3,6.2008]
[1753880151299,24.1708,3779.0,3778.9,2.445]
[1753880151598,67.2182,3779.0,3778.9,6.249]
[1753880152000,43.7893,3779.0,3778.9,6.249]
[1753880152399,44.6307,3779.0,3778.9,6.249]
[1753880153302,45.515,3779.0,3778.9,6.249]
[1753880153500,41.3685,3779.0,3778.9,6.249]
[1753880153803,43.6588,3779.0,3778.9,6.249]
[1753880154208,22.6877,3779.3,3779.2,5.24552]
[1753880154499,5.5787,3779.3,3779.2,6.77822]
[1753880154805,4.715,3779.6,3779.5,5.24548]
[1753880155006,4.715,3779.6,3779.5,6.77818]
[1753880155007,1.5833,3779.6,3779.5,6.77818]
[1753880155813,7.0814,3779.8,3779.7,6.77815]
[1753880156102,8.7865,3779.8,3779.7,3.796]
[1753880156299,8.7865,3779.8,3779.7,6.249]
[1753880156805,5.5787,3779.8,3779.7,6.249]
[1753880157004,5.5787,3779.8,3779.7,9.4568]
[1753880157803,1.5833,3779.8,3779.7,9.4568]
[1753880158306,3.9315,3779.8,3779.7,9.4568]
[1753880158802,2.5247,3779.8,3779.7,9.4568]
[1753880159008,0.5685,3779.8,3779.7,9.4568]
[1753880159607,1.6003,3779.8,3779.7,9.4568]
[1753880159811,3.9485,3779.8,3779.7,9.4568]
[1753880160004,4.7886,3779.8,3779.7,9.4568]
[1753880160213,4.1548,3779.9,3779.8,2.96454]
[1753880160408,4.9949,3779.9,3779.8,6.67494]
[1753880160704,0.2,3779.9,3779.8,6.67494]
[1753880163608,0.2,3779.9,3779.8,11.96615525]
[1753880168917,5.9216,3779.9,3779.8,0.52914]
[1753880169611,5.9216,3779.9,3779.7,3.2078]
[1753880169812,3.06307,3779.6,3779.4,0.52919]
[1753880170017,2.5339,3779.4,3779.3,3.737]
[1753880170219,5.7216,3779.4,3779.3,3.737]
[1753880170423,5.7216,3779.4,3779.3,3.2078]
[1753880171117,5.7216,3779.1,3779.0,1.42384]
[1753880171418,5.7216,3779.1,3778.9,3.2078]
[1753880171615,5.7216,3779.0,3778.9,3.2078]
[1753880172916,4.7943,3779.0,3778.9,4.6893]
[1753880173124,3.9548,3779.0,3778.9,9.3536]
[1753880173422,4.7943,3779.0,3778.9,9.3536]
[1753880173721,5.7216,3779.0,3778.9,9.3536]
[1753880174519,5.7216,3779.0,3778.9,6.9707]
[1753880175011,5.7216,3779.0,3778.9,9.3536]
[1753880176416,4.2978,3779.4,3779.3,2.4354]
[1753880176617,3.9548,3779.4,3779.3,6.67501]
[1753880176824,5.7216,3779.4,3779.3,6.67501]
[1753880178020,5.7216,3779.7,3779.6,4.29206]
[1753880178224,5.7216,3779.7,3779.6,6.67496]
[1753880180523,1.9591,3779.5,3779.4,0.5292]
[1753880180731,3.4583,3779.5,3779.4,0.5292]
[1753880181024,5.7216,3779.5,3779.4,0.5292]
[1753880181422,5.7216,3778.9,3778.8,0.52928]
[1753880181819,5.7216,3778.9,3778.8,2.75138]
[1753880182023,5.7216,3778.9,3778.8,4.29218]
[1753880182733,5.7216,3778.9,3778.8,6.67508]
[1753880183626,2.3482,3779.5,3778.8,3.7104]
[1753880183932,6.25079,3779.5,3779.3,0.5292]
[1753880184239,2.5339,3779.3,3779.2,5.34752]
[1753880184433,5.7216,3779.3,3779.2,5.34752]
[1753880184931,4.6221,3779.6,3779.5,3.7629]
[1753880185128,8.9294,3779.6,3779.5,6.1458]
[1753880186725,6.4738,3779.6,3779.5,6.1458]
[1753880186932,8.9294,3779.6,3779.5,6.1458]
[1753880187235,5.6546,3779.6,3779.5,6.1458]
[1753880187423,8.0152,3779.6,3779.5,6.1458]
[1753880187828,3.9698,3779.6,3779.5,6.1458]
[1753880188638,5.7182,3779.6,3779.4,3.73699]
[1753880188833,5.1434,3779.5,3779.4,7.56739]
[1753880189034,5.7255,3779.5,3779.4,9.90439]
[1753880189236,5.7255,3779.5,3779.4,7.56739]
[1753880189431,5.7255,3779.5,3779.4,6.69659]
[1753880189630,1.5491,3779.5,3779.4,6.69659]
[1753880190139,5.9255,3779.9,3779.8,6.1674]
[1753880190440,4.1771,3779.9,3779.8,6.1674]
[1753880190632,0.7821,3779.9,3779.8,6.1674]
[1753880193437,4.1771,3779.9,3779.8,6.1674]
[1753880193839,0.2,3779.9,3779.8,6.1674]
[1753880194138,0.2,3779.9,3779.8,9.3752]
[1753880194730,0.2,3779.9,3779.8,14.66641525]
[1753880194933,1.523,3781.0,3780.2,6.1674]
[1753880195132,5.7255,3781.0,3780.9,6.69639]
[1753880195332,5.7255,3781.0,3780.9,6.69026021]
[1753880197746,5.7255,3781.0,3780.9,6.1674]
[1753880197946,5.7255,3781.0,3780.9,3.8304]
[1753880198145,5.7255,3781.0,3780.9,2.8839]
[1753880198942,2.4599,3781.0,3780.9,1.5114]
[1753880199251,2.4599,3781.0,3780.5,3.2078]
[1753880199448,1.8778,3780.6,3780.5,7.9773]
[1753880199654,3.2078,3781.2,3780.9,5.29849]
[1753880199655,5.7255,3781.0,3780.9,5.29849]
[1753880200055,5.7255,3781.0,3780.9,6.69639]
[1753880201956,1.5491,3781.0,3780.9,6.69639]
[1753880202153,4.8147,3781.0,3780.9,6.69639]
[1753880202458,5.7255,3781.0,3780.9,1.486]
[1753880202758,5.7255,3781.0,3780.9,0.9211]
[1753880202957,6.25447,3781.0,3780.9,0.9211]
[1753880203252,3.2714,3780.9,3780.8,0.529]
[1753880203557,5.7255,3780.9,3780.8,0.529]
[1753880203858,6.2545,3780.9,3780.7,1.92691]
[1753880204059,3.2656,3780.8,3780.7,3.41291]
[1753880204260,5.7255,3780.8,3780.7,4.35941]
[1753880204461,5.7255,3780.8,3780.7,6.69642]
[1753880205361,5.7255,3780.8,3780.7,6.1674]
[1753880206854,4.8147,3781.1,3781.0,6.1674]
[1753880207059,5.7255,3781.1,3781.0,6.1674]
[1753880208466,3.9771,3781.1,3781.0,6.74910848]
[1753880209867,1.5491,3781.1,3781.0,6.74910848]
[1753880210169,3.9771,3781.1,3781.0,6.74910848]
[1753880210866,5.7255,3781.1,3780.9,3.73678]
[1753880211063,2.98887,3781.1,3780.9,3.73678]
[1753880211264,3.9829,3781.0,3780.9,4.65788]
[1753880211472,5.7255,3781.0,3780.9,6.62068]
[1753880211769,5.7255,3781.0,3780.9,9.90418]
[1753880211970,4.8147,3781.0,3780.9,9.90418]
[1753880212166,3.9771,3781.0,3780.9,9.90418]
[1753880212470,5.7255,3781.0,3780.9,9.90418]
[1753880213072,5.7255,3781.0,3780.9,7.54518]
[1753880213267,5.7255,3781.0,3780.9,7.9627]
[1753880213766,5.7255,3781.0,3780.9,9.3752]
[1753880214860,1.5491,3781.0,3780.9,9.3752]
[1753880215367,2.4541,3781.0,3780.9,9.3752]
[1753880215767,3.9771,3781.0,3780.9,9.3752]
[1753880215966,4.8147,3781.0,3780.9,9.3752]
[1753880216168,5.7255,3781.0,3780.9,9.3752]
[1753880216367,5.7255,3781.0,3780.9,9.95690848]
[1753880218674,3.9771,3781.0,3780.9,9.95690848]
[1753880218869,1.4731,3781.3,3781.2,6.54575]
[1753880219071,2.4473,3781.3,3781.2,7.12745848]
[1753880219368,4.7134,3781.3,3781.2,7.12745848]
[1753880219576,1.4731,3781.3,3781.2,7.12745848]
[1753880219763,2.4473,3781.3,3781.2,7.12745848]
[1753880219962,3.8716,3781.3,3781.2,7.12745848]
[1753880220370,0.6095,3781.3,3781.2,7.12745848]
[1753880221272,3.8716,3781.3,3781.2,7.12745848]
[1753880221669,4.7134,3781.3,3781.2,7.12745848]
[1753880221972,4.7134,3781.3,3781.2,6.54575]
[1753880222176,4.7134,3781.3,3781.2,7.12745848]
[1753880222369,3.8716,3781.3,3781.2,7.12745848]
[1753880222667,0.8418,3781.5,3781.2,6.59850848]
[1753880222873,4.7134,3781.5,3781.4,4.38352]
[1753880225077,5.6244,3781.5,3781.4,4.38352]
[1753880225776,3.8716,3781.5,3781.4,4.38352]
[1753880226075,3.8716,3781.5,3781.4,6.54572]
[1753880226471,4.7826,3781.5,3781.4,2.69112]
[1753880227671,2.4947,3781.4,3781.0,0.58170848]
[1753880227866,5.6244,3781.3,3781.2,18.422]
[1753880228078,5.6244,3781.3,3781.2,18.95094]
[1753880228477,5.6244,3781.3,3781.2,21.68674]
[1753880228878,5.6244,3781.3,3781.2,24.96774]
[1753880229074,2.4473,3781.3,3781.2,24.96774]
[1753880229380,3.8716,3781.5,3781.4,6.54572]
[1753880229580,5.6218,3781.5,3781.4,6.54572]
[1753880230075,3.1989,3781.4,3781.0,0.58170848]
[1753880230276,0.58170848,3781.6,3781.0,0.52897]
[1753880230277,4.7582,3781.1,3781.0,0.52897]
[1753880230473,3.02367,3781.0,3780.9,18.418]
[1753880230673,6.15077,3781.0,3780.9,18.418]
[1753880230867,2.2635,3780.9,3780.5,4.0951]
[1753880231071,5.6218,3780.6,3780.5,22.15384]
[1753880231277,5.6218,3780.6,3780.5,3.2078]
[1753880232179,5.6218,3780.6,3780.4,19.7023]
[1753880232180,5.6218,3780.3,3780.1,6.47728452]
[1753880232374,2.4947,3780.3,3780.1,4.4931]
[1753880232575,3.02377,3780.3,3780.1,3.2078]
[1753880232879,5.3117,3780.1,3780.0,3.26948452]
[1753880233177,0.52918,3779.5,3779.4,18.416]
[1753880233478,3.08534631,3779.5,3779.4,18.416]
[1753880233674,1.91173631,3779.5,3779.4,1.4551]
[1753880234377,3.47663631,3779.5,3779.4,1.4551]
[1753880234582,3.0854,3779.3,3779.2,4.6629]
[1753880234776,3.0854,3779.3,3779.2,5.5502]
[1753880235184,3.0854,3779.3,3779.2,7.0624]
[1753880235378,3.0854,3779.3,3779.2,7.9393]
[1753880236382,3.0854,3779.3,3779.2,3.2078]
[1753880236582,3.0854,3779.3,3779.2,4.6629]
[1753880236880,3.0854,3779.3,3779.2,9.2246]
[1753880237679,1.5205,3779.1,3779.0,0.8769]
[1753880237885,3.61465,3779.0,3778.9,5.1295]
[1753880238181,0.911,3778.1,3778.0,1.2853]
[1753880238479,3.0854,3777.9,3777.8,0.19587861]
[1753880239187,43.8854,3777.9,3777.8,0.19587861]
[1753880240177,43.8854,3777.9,3777.8,1.65097861]
[1753880240383,41.4095,3777.9,3777.8,6.21267861]
[1753880240983,42.9744,3777.9,3777.8,0.19587861]
[1753880241778,42.9744,3777.9,3777.8,2.01137861]
[1753880241981,42.9744,3777.9,3777.8,6.21267861]
[1753880242181,42.9744,3777.9,3777.8,0.19587861]
[1753880242486,42.9744,3777.9,3777.8,1.65097861]
[1753880242678,42.9744,3777.9,3777.8,4.92737861]
[1753880244181,42.9744,3777.9,3777.8,2.53367861]
[1753880244383,42.9744,3777.9,3777.8,1.64637861]
[1753880244584,42.9744,3777.9,3777.8,0.19587861]
[1753880244779,54.44928806,3777.9,3777.8,0.19587861]
[1753880244984,3.61489,3777.3,3777.2,0.018532]
[1753880245484,3.61489,3777.3,3777.2,3.862732]
[1753880245884,3.61489,3777.3,3777.2,2.412232]
[1753880246086,27.32290643,3777.3,3776.5,3.73739]
[1753880246290,2.05009,3776.6,3776.3,3.80233169]
[1753880246489,2.05009,3776.6,3776.5,6.5464]
[1753880246684,42.3205,3776.6,3776.5,6.5464]
[1753880247794,40.8,3776.6,3776.5,6.5464]
[1753880249492,3.2078,3777.0,3776.8,2.87746]
[1753880249685,3.2078,3777.0,3776.9,6.215]
[1753880249885,59.214,3777.3,3777.2,6.7445]
[1753880250194,41.5011,3777.3,3777.2,5.5947]
[1753880250396,3.54993,3777.0,3776.9,1.8917]
[1753880250588,3.0204,3777.0,3776.9,3.3962]
[1753880250789,3.0204,3777.0,3776.9,6.215]
[1753880251294,1.4756,3777.0,3776.9,6.215]
[1753880251592,41.5011,3777.3,3777.2,6.215]
[1753880252094,42.4034,3777.3,3777.2,6.215]
[1753880252887,42.4034,3777.3,3777.2,4.8621]
[1753880253589,42.4034,3777.3,3777.2,2.4756]
[1753880254191,42.4034,3777.3,3777.2,6.215]
[1753880254691,18.414,3777.5,3777.2,7.53874]
[1753880254889,18.9873,3777.5,3777.4,6.215]
[1753880255084,20.5321,3777.5,3777.4,6.215]
[1753880255289,65.4422,3777.5,3777.4,1.5023]
[1753880255497,3.54992,3777.1,3777.0,4.38193]
[1753880255997,3.54992,3777.1,3777.0,5.39163]
[1753880256591,3.54992,3777.1,3777.0,6.215]
[1753880256792,3.54992,3777.1,3776.8,3.73735]
[1753880256992,0.5733,3776.9,3776.8,5.722]
[1753880257298,3.0204,3776.9,3776.8,4.7491]
[1753880257691,3.0204,3776.9,3776.8,6.215]
[1753880259299,2.1181,3776.9,3776.8,6.215]
[1753880260296,0.5733,3776.9,3776.8,6.215]
[1753880260999,0.52954,3777.0,3776.9,6.74454]
[1753880261493,1.10284,3777.0,3776.9,6.215]
[1753880261695,2.64764,3777.0,3776.9,6.215]
[1753880261896,3.54994,3777.0,3776.9,6.215]
[1753880262394,0.52959,3776.6,3776.5,1.53929]
[1753880262602,2.64769,3776.6,3776.5,4.7491]
[1753880262893,3.54999,3776.6,3776.5,6.215]
[1753880263295,3.54999,3776.6,3776.5,3.7394]
[1753880263494,3.54999,3776.6,3776.5,2.3865]
[1753880263799,3.54999,3776.6,3776.5,3.7394]
[1753880264096,0.52957,3776.8,3776.7,2.2349]
[1753880264299,0.52955,3776.9,3776.8,5.2053]
[1753880264494,0.52951,3777.2,3777.0,1.5045]
[1753880264793,0.52951,3777.2,3777.1,6.79799989]
[1753880264990,1.10281,3777.2,3777.1,6.79799989]
[1753880265189,2.64761,3777.2,3777.1,6.79799989]
[1753880265696,2.64761,3777.2,3777.1,6.215]